bitfinex-derivatives/quotes_BTCF0:USTF0_20240917
["timestamp","ask_amount","ask_price","bid_price","bid_amount"]
[1726583345492,0.3608,60118.0,60116.0,1.1822]
[1726583345894,0.3608,60125.0,60117.0,0.49904]
[1726583346100,0.3608,60125.0,60107.0,0.53]
[1726583346101,0.3608,60118.0,60107.0,0.53]
[1726583346289,0.3608,60125.0,60107.0,0.53]
[1726583346479,0.3608,60114.0,60113.0,0.083164]
[1726583346681,0.3608,60120.0,60092.0,0.3608]
[1726583346682,0.3608,60120.0,60118.0,0.083156]
[1726583347085,0.7216,60120.0,60118.0,0.083156]
[1726583347290,0.3608,60120.0,60119.0,0.499]
[1726583347487,0.3608,60124.0,60123.0,0.08315]
[1726583347685,0.3608,60124.0,60122.0,0.083151]
[1726583347891,0.03923486,60123.0,60116.0,0.09528819]
[1726583348095,0.3608,60119.0,60110.0,0.083167]
[1726583348285,0.3608,60119.0,60112.0,0.083165]
[1726583348286,0.3608,60113.0,60112.0,0.083165]
[1726583348603,0.08464465,60113.0,60112.0,0.083165]
[1726583348783,0.08446242,60113.0,60112.0,1.182245]
[1726583348991,0.03923486,60113.0,60112.0,1.182245]
[1726583349186,0.3608,60124.0,60123.0,0.08315]
[1726583349391,0.3608,60131.0,60123.0,0.08315]
[1726583349392,0.3608,60131.0,60130.0,0.08314]
[1726583349690,0.4063131,60131.0,60130.0,0.08314]
[1726583349888,0.3608,60137.0,60136.0,0.083132]
[1726583350095,0.40359378,60137.0,60136.0,0.083132]
[1726583350589,0.40365759,60137.0,60136.0,0.083132]
[1726583350885,0.3608,60137.0,60136.0,0.083132]
[1726583351090,0.269067,60137.0,60136.0,1.182012]
[1726583351285,0.3608,60159.0,60157.0,0.083103]
[1726583351495,0.3608,60159.0,60158.0,0.53]
[1726583351901,0.3608,60159.0,60157.0,0.084383]
[1726583352089,0.3608,60159.0,60157.0,0.04511367]
[1726583352290,0.3608,60158.0,60157.0,0.04511367]
[1726583352592,0.13079277,60165.0,60142.0,0.3608]
[1726583352593,0.10717587,60144.0,60143.0,0.166244]
[1726583352796,0.14722615,60170.0,60143.0,0.166244]
[1726583352797,0.13079277,60168.0,60143.0,1.2516]
[1726583353001,0.49156162,60175.0,60173.0,0.083081]
[1726583353203,0.3608,60175.0,60173.0,0.683081]
[1726583354086,0.3608,60190.0,60173.0,0.6]
[1726583354291,0.3608,60190.0,60184.0,0.53]
[1726583354493,0.16133392,60201.0,60184.0,0.53]
[1726583354494,0.14722615,60200.0,60194.0,0.083052]
[1726583354696,0.13073656,60200.0,60190.0,0.00249198]
[1726583354898,0.49153656,60202.0,60191.0,0.53]
[1726583355199,0.00084,60201.0,60200.0,0.083043]
[1726583355496,0.49153656,60201.0,60200.0,0.083043]
[1726583355701,0.3608,60201.0,60200.0,0.083043]
[1726583356398,0.277422,60201.0,60200.0,0.683043]
[1726583356601,0.3608,60211.0,60210.0,0.08303]
[1726583356898,0.05099089,60211.0,60207.0,0.34703573]
[1726583357103,0.05099089,60210.0,60209.0,0.083031]
[1726583357599,0.05099089,60210.0,60209.0,0.683031]
[1726583357997,0.77259089,60210.0,60191.0,0.53]
[1726583358297,0.54041482,60198.0,60190.0,0.083056]
[1726583358602,0.11057334,60197.0,60196.0,0.083049]
[1726583358898,0.05099089,60197.0,60196.0,0.083049]
[1726583359293,0.08309741,60197.0,60196.0,0.683049]
[1726583359500,0.08305741,60197.0,60196.0,0.683049]
[1726583359901,0.08305741,60197.0,60189.0,0.083058]
[1726583360099,0.03210652,60196.0,60186.0,0.01231112]
[1726583360300,0.90134864,60187.0,60181.0,0.00075593]
[1726583360511,0.52424467,60182.0,60181.0,0.08382593]
[1726583360712,0.45250532,60182.0,60181.0,0.08382593]
[1726583360912,0.43360092,60182.0,60181.0,0.00075593]
[1726583361220,0.59709331,60182.0,60181.0,0.00075593]
[1726583361500,1.95274345,60182.0,60151.0,0.53]
[1726583361706,0.3608,60158.0,60157.0,0.083103]
[1726583361901,0.43361436,60158.0,60157.0,0.083103]
[1726583362096,0.49324537,60158.0,60157.0,0.083103]
[1726583362303,0.43361436,60158.0,60157.0,0.083103]
[1726583362706,0.43361436,60158.0,60153.0,0.00249288]
[1726583362895,0.3608,60154.0,60141.0,0.083124]
[1726583363098,0.07744894,60142.0,60141.0,0.083124]
[1726583363410,0.36168,60146.0,60145.0,0.083119]
[1726583363602,0.61373525,60146.0,60145.0,0.083119]
[1726583363808,0.49328484,60146.0,60145.0,0.083119]
[1726583364001,0.39292144,60146.0,60145.0,0.083119]
[1726583364496,0.39292144,60146.0,60145.0,1.213119]
[1726583364808,0.3608,60149.0,60145.0,1.213119]
[1726583364809,0.3608,60149.0,60148.0,0.083115]
[1726583365006,0.43364127,60149.0,60148.0,0.083115]
[1726583365201,0.39292067,60149.0,60148.0,0.083115]
[1726583365406,0.39292067,60149.0,60148.0,0.683115]
[1726583366007,0.3608,60159.0,60158.0,0.083101]
[1726583366216,0.79443623,60159.0,60158.0,0.083101]
[1726583366712,0.99290483,60159.0,60158.0,0.083101]
[1726583366914,0.68481948,60191.0,60158.0,1.181781]
[1726583366915,0.13120585,60163.0,60158.0,1.181781]
[1726583367130,0.3608,60169.0,60168.0,0.083088]
[1726583367307,0.41182547,60169.0,60168.0,0.083088]
[1726583367608,0.3608,60169.0,60168.0,0.083088]
[1726583368604,0.276528,60171.0,60170.0,0.16617]
[1726583368816,0.181614,60171.0,60170.0,0.69617]
[1726583369014,0.13122148,60179.0,60173.0,0.083081]
[1726583369313,0.3608,60186.0,60185.0,0.083064]
[1726583369515,0.92877401,60181.0,60179.0,0.083072]
[1726583369710,0.55941424,60180.0,60179.0,0.083072]
[1726583369912,0.3608,60180.0,60179.0,0.083072]
[1726583370113,0.21427071,60182.0,60179.0,0.083072]
[1726583370313,0.3608,60180.0,60179.0,0.083072]
[1726583370901,0.13121794,60183.0,60182.0,0.083068]
[1726583371108,0.3608,60186.0,60182.0,0.083068]
[1726583371109,0.13121794,60184.0,60182.0,0.083068]
[1726583371314,0.443863,60186.0,60182.0,0.083068]
[1726583371515,0.443863,60186.0,60178.0,0.53116]
[1726583371516,1.28957401,60184.0,60178.0,0.00116]
[1726583371805,1.28957401,60184.0,60174.0,0.00249277]
[1726583371806,0.3608,60179.0,60174.0,0.00249277]
[1726583372416,0.19862108,60178.0,60177.0,0.083075]
[1726583372719,0.16402511,60186.0,60177.0,1.4908]
[1726583372909,0.03290798,60184.0,60183.0,0.613067]
[1726583373103,0.3608,60200.0,60195.0,0.08305]
[1726583373104,0.16402511,60196.0,60195.0,0.08305]
[1726583373305,0.18040333,60198.0,60195.0,0.08305]
[1726583373503,0.18040333,60198.0,60189.0,0.53]
[1726583373504,0.1640305,60196.0,60193.0,0.083052]
[1726583373718,0.1640305,60194.0,60193.0,0.083052]
[1726583373913,0.1640305,60194.0,60189.0,0.00128]
[1726583374114,0.3608,60194.0,60193.0,0.083053]
[1726583374319,0.92877401,60190.0,60187.0,0.00249184]
[1726583374614,0.3608,60188.0,60187.0,0.08555284]
[1726583374813,0.3608,60188.0,60187.0,0.61551284]
[1726583375009,0.04069475,60188.0,60187.0,1.29857384]
[1726583375211,0.16406813,60188.0,60187.0,1.29857384]
[1726583375714,0.04069475,60188.0,60187.0,1.29857384]
[1726583376221,0.24000024,60199.0,60198.0,0.083046]
[1726583376413,0.3608,60200.0,60199.0,0.083045]
[1726583376810,0.3608,60200.0,60199.0,0.12067792]
[1726583377007,0.39289515,60200.0,60199.0,0.03763292]
[1726583377216,0.03209515,60200.0,60199.0,0.72067792]
[1726583377515,0.03209515,60204.0,60203.0,0.083039]
[1726583377718,0.21161948,60217.0,60203.0,0.53]
[1726583377911,0.92877401,60215.0,60205.0,0.3608]
[1726583378112,0.11058819,60214.0,60213.0,0.083026]
[1726583378312,0.05099206,60214.0,60213.0,0.083026]
[1726583378509,0.05099206,60214.0,60213.0,0.613026]
[1726583378835,0.3608,60246.0,60223.0,0.083012]
[1726583379115,0.34292824,60275.0,60245.0,0.8908]
[1726583379116,0.3608,60262.0,60245.0,0.8908]
[1726583379324,0.92877401,60260.0,60259.0,0.53]
[1726583379511,0.42894194,60274.0,60259.0,0.53]
[1726583379713,0.92877401,60267.0,60258.0,0.3608]
[1726583379913,0.3608,60274.0,60266.0,0.53]
[1726583379914,0.92877401,60273.0,60266.0,0.53]
[1726583380129,0.3608,60274.0,60272.0,0.612943]
[1726583380515,0.3608,60281.0,60272.0,0.973743]
[1726583380716,0.3608,60294.0,60280.0,0.8908]
[1726583381010,0.3608,60294.0,60293.0,0.612915]
[1726583381210,0.3608,60305.0,60296.0,0.082911]
[1726583381513,0.3608,60305.0,60289.0,0.00248779]
[1726583381514,0.3608,60299.0,60298.0,0.53]
[1726583381718,1.28957401,60299.0,60298.0,0.53]
[1726583381918,1.79169237,60299.0,60298.0,0.53]
[1726583382808,0.3608,60305.0,60298.0,0.53]
[1726583383011,0.3608,60305.0,60289.0,0.00248779]
[1726583383012,0.86291836,60305.0,60304.0,0.53]
[1726583383209,0.86291836,60305.0,60300.0,0.00248714]
[1726583383425,1.28957401,60301.0,60277.0,0.53]
[1726583383615,0.92877401,60293.0,60291.0,0.53]
[1726583383923,0.3608,60292.0,60287.0,0.00248753]
[1726583384123,0.3608,60292.0,60290.0,0.53]
[1726583384624,0.3608,60301.0,60291.0,0.53]
[1726583384829,1.28957401,60295.0,60293.0,0.082915]
[1726583386028,0.3608,60295.0,60293.0,0.082915]
[1726583386213,0.3608,60306.0,60291.0,0.53]
[1726583386415,0.92877401,60304.0,60299.0,0.53]
[1726583386727,0.92877401,60295.0,60287.0,0.00248753]
[1726583386928,0.3608,60294.0,60287.0,0.00248753]
[1726583387228,0.3608,60294.0,60289.0,0.08292]
[1726583387229,0.92877401,60290.0,60289.0,0.08292]
[1726583387414,0.3608,60300.0,60289.0,0.08292]
[1726583387618,0.92877401,60290.0,60289.0,0.08292]
[1726583388019,0.86043057,60300.0,60288.0,0.53]
[1726583388020,0.3608,60295.0,60294.0,0.082914]
[1726583388214,0.3608,60295.0,60294.0,0.612914]
[1726583388215,1.28957401,60295.0,60294.0,0.612914]
[1726583388421,0.3608,60304.0,60300.0,0.082905]
[1726583388819,0.92877401,60301.0,60300.0,0.082905]
[1726583389024,0.86043057,60304.0,60303.0,0.082902]
[1726583389432,0.3608,60312.0,60306.0,0.082896]
[1726583389635,0.3608,60312.0,60300.0,0.8908]
[1726583389636,0.92877401,60303.0,60300.0,0.53]
[1726583389835,1.28957401,60301.0,60299.0,0.00248733]
[1726583390035,1.28957401,60301.0,60299.0,0.08539433]
[1726583390336,0.92877401,60300.0,60299.0,0.00248733]
[1726583391326,0.3608,60307.0,60306.0,0.082898]
[1726583391723,0.3608,60307.0,60306.0,0.612898]
[1726583392229,0.3608,60315.0,60314.0,0.082887]
[1726583392530,0.86043057,60315.0,60310.0,0.00248696]
[1726583392737,0.86043057,60315.0,60274.0,0.53]
[1726583392738,0.92877373,60290.0,60274.0,0.53]
[1726583393028,0.3608,60285.0,60284.0,0.082928]
[1726583393820,0.3608,60286.0,60285.0,0.082926]
[1726583394129,0.3608,60286.0,60280.0,0.0024878]
[1726583394434,0.92877373,60283.0,60282.0,0.082931]
[1726583394929,0.444605,60286.0,60280.0,0.0024878]
[1726583395136,0.92877373,60283.0,60282.0,0.082931]
[1726583395343,0.082932,60281.0,60280.0,0.0024878]
[1726583395629,1.01170573,60281.0,60280.0,0.0024878]
[1726583396031,0.082943,60273.0,60268.0,0.3632884]
[1726583396236,0.92877373,60274.0,60273.0,0.082943]
[1726583396731,0.3608,60278.0,60273.0,0.082943]
[1726583396938,0.92877373,60275.0,60268.0,0.8932884]
[1726583397143,0.92877373,60275.0,60274.0,0.082942]
[1726583397635,0.92877373,60275.0,60269.0,0.082947]
[1726583397831,0.92877373,60275.0,60268.0,0.3632884]
[1726583397832,0.443744,60273.0,60270.0,0.082947]
[1726583398041,0.92877373,60269.0,60268.0,0.3632884]
[1726583398533,0.92877373,60269.0,60268.0,0.4462384]
[1726583398733,0.92877373,60269.0,60268.0,0.08295]
[1726583399132,1.01172173,60269.0,60266.0,0.082951]
[1726583399333,0.92877373,60268.0,60267.0,0.082951]
[1726583400125,0.082951,60267.0,60266.0,0.01181133]
[1726583400330,0.92877373,60264.0,60263.0,0.08544541]
[1726583400529,0.00084,60289.0,60264.0,0.4978]
[1726583400730,1.01558098,60306.0,60264.0,0.4978]
[1726583400731,0.12967698,60309.0,60288.0,0.973722]
[1726583400928,0.00084,60321.0,60310.0,0.082892]
[1726583400929,0.84192073,60311.0,60310.0,0.082892]
[1726583401136,0.12967698,60324.0,60308.0,0.53]
[1726583401337,0.03203131,60323.0,60317.0,0.00248608]
[1726583401526,0.3608,60323.0,60317.0,0.00248608]
[1726583401726,1.20272073,60318.0,60317.0,0.00248608]
[1726583401929,0.84192073,60318.0,60317.0,0.00248608]
[1726583402138,1.69986377,60318.0,60317.0,0.00248608]
[1726583402345,1.69986377,60318.0,60304.0,0.01233958]
[1726583402645,0.84192073,60305.0,60300.0,0.3608]
[1726583402829,0.84192073,60301.0,60300.0,0.3608]
[1726583403230,0.84192073,60301.0,60299.0,0.01228047]
[1726583403430,0.082887,60314.0,60300.0,0.8908]
[1726583403640,0.84192073,60307.0,60305.0,0.3608]
[1726583403837,0.84192073,60309.0,60307.0,0.082895]
[1726583404043,0.84192073,60309.0,60305.0,0.3608]
[1726583404044,0.49714304,60314.0,60308.0,0.53]
[1726583404238,0.84192073,60309.0,60308.0,0.53]
[1726583404628,1.33906377,60309.0,60308.0,0.53]
[1726583405031,1.37109947,60309.0,60308.0,0.53]
[1726583405435,1.7725151,60309.0,60296.0,0.36328772]
[1726583405631,0.84192073,60297.0,60296.0,0.37565887]
[1726583405841,0.3608,60302.0,60297.0,0.08291]
[1726583405842,0.84192073,60298.0,60297.0,0.08291]
[1726583406039,0.03204057,60298.0,60297.0,0.08291]
[1726583406235,0.00084,60301.0,60300.0,0.082905]
[1726583406434,0.91457912,60301.0,60300.0,0.082905]
[1726583406736,0.03203996,60301.0,60300.0,0.443705]
[1726583406940,0.1458866,60312.0,60300.0,0.443705]
[1726583406941,0.12967698,60312.0,60303.0,0.082901]
[1726583407149,0.84192073,60307.0,60305.0,0.443699]
[1726583407437,0.17028906,60306.0,60305.0,0.3608]
[1726583407637,0.17028906,60306.0,60305.0,0.443699]
[1726583407638,0.04061208,60306.0,60305.0,0.443699]
[1726583407839,0.3608,60318.0,60310.0,0.082892]
[1726583407840,0.12967698,60311.0,60310.0,0.082892]
[1726583408040,0.12967698,60312.0,60311.0,0.082891]
[1726583408233,0.12967698,60313.0,60312.0,0.082889]
[1726583408429,0.1458866,60313.0,60312.0,0.612889]
[1726583408640,0.16325602,60317.0,60316.0,0.082884]
[1726583408834,0.16325602,60317.0,60312.0,0.53]
[1726583408835,0.25384581,60317.0,60312.0,0.53128]
[1726583409037,0.84192073,60313.0,60312.0,0.53]
[1726583409234,1.24332976,60313.0,60306.0,0.00248666]
[1726583409432,1.28561673,60307.0,60306.0,0.00181477]
[1726583409631,1.4366169,60307.0,60306.0,0.00181477]
[1726583409838,0.84192073,60295.0,60294.0,0.082914]
[1726583410038,1.49006394,60295.0,60293.0,0.53128]
[1726583410331,1.49006394,60295.0,60286.0,0.612925]
[1726583410332,0.082917,60292.0,60286.0,0.612925]
[1726583410538,0.84192073,60288.0,60286.0,0.53]
[1726583410737,0.15102535,60287.0,60286.0,0.53]
[1726583410933,0.15102535,60287.0,60286.0,0.612925]
[1726583411147,0.99294608,60287.0,60286.0,0.612925]
[1726583411343,1.85088912,60287.0,60284.0,0.00248746]
[1726583411646,1.20272073,60285.0,60284.0,0.08541546]
[1726583411837,1.35374608,60285.0,60284.0,0.08541546]
[1726583412142,1.49008912,60285.0,60284.0,0.00248746]
[1726583412545,1.78732556,60285.0,60284.0,0.00248746]
[1726583412946,2.53381512,60285.0,60276.0,0.53]
[1726583413250,2.53381512,60285.0,60260.0,0.3608]
[1726583413251,0.082956,60264.0,60260.0,0.3608]
[1726583413549,0.082939,60276.0,60256.0,0.00248895]
[1726583413550,0.09153833,60263.0,60256.0,0.00248895]
[1726583413750,0.92488573,60257.0,60256.0,0.00248895]
[1726583414053,1.29022186,60257.0,60256.0,0.00248895]
[1726583414242,1.78742651,60257.0,60256.0,0.00248895]
[1726583414437,1.57311573,60257.0,60256.0,0.00248895]
[1726583414844,1.93391573,60257.0,60256.0,0.00248895]
[1726583415346,0.51188696,60257.0,60256.0,0.00248895]
[1726583415646,0.45239994,60257.0,60256.0,0.00248895]
[1726583416037,1.29432067,60257.0,60256.0,0.00187115]
[1726583416246,1.35380769,60257.0,60256.0,0.00187115]
[1726583416748,2.70131285,60257.0,60256.0,0.00187115]
[1726583416950,2.38934102,60257.0,60240.0,0.53]
[1726583417144,0.84192073,60241.0,60240.0,0.53]
[1726583417339,0.84192073,60241.0,60236.0,0.00248976]
[1726583417550,0.92491373,60237.0,60236.0,0.00248976]
[1726583417749,1.42205677,60237.0,60236.0,0.00248976]
[1726583418339,2.10504977,60237.0,60236.0,0.00248976]
[1726583418545,1.27033409,60237.0,60207.0,0.3608]
[1726583418743,0.84192073,60210.0,60206.0,0.53]
[1726583418951,1.20272073,60222.0,60211.0,0.53]
[1726583419146,1.20272073,60222.0,60221.0,0.53]
[1726583419668,1.20272073,60222.0,60221.0,0.52992]
[1726583419839,1.69986377,60222.0,60221.0,0.52992]
[1726583420043,1.69986377,60222.0,60217.0,0.00249074]
[1726583420242,0.84192073,60218.0,60217.0,0.00249074]
[1726583420443,1.56352073,60218.0,60217.0,0.00249074]
[1726583420641,1.69986377,60218.0,60217.0,0.00249074]
[1726583421051,1.69986377,60218.0,60203.0,0.00249087]
[1726583421052,0.083038,60204.0,60203.0,0.00249087]
[1726583421243,0.92495873,60204.0,60203.0,0.00249087]
[1726583421554,1.33906377,60204.0,60203.0,0.00249087]
[1726583421849,1.69986377,60204.0,60184.0,0.53]
[1726583422050,0.84192073,60193.0,60190.0,0.53]
[1726583422249,1.20272073,60193.0,60190.0,0.53]
[1726583422455,0.3608,60204.0,60190.0,0.53]
[1726583422650,0.3608,60194.0,60189.0,0.083058]
[1726583422850,0.3608,60194.0,60193.0,0.53]
[1726583424558,0.3608,60204.0,60193.0,0.00249139]
[1726583424760,0.3608,60210.0,60203.0,0.53]
[1726583424957,0.3608,60210.0,60209.0,0.613031]
[1726583425159,0.083017,60220.0,60215.0,0.083022]
[1726583425464,0.84192073,60218.0,60209.0,0.53]
[1726583425663,0.84192073,60218.0,60217.0,0.08302]
[1726583425848,0.3608,60223.0,60222.0,0.083013]
[1726583426266,0.3608,60235.0,60222.0,0.3608]
[1726583426460,0.84192073,60224.0,60218.0,0.0024906]
[1726583426649,0.3608,60219.0,60218.0,0.0855096]
[1726583426851,0.85794304,60224.0,60218.0,0.0024906]
[1726583427050,0.84192073,60219.0,60218.0,0.0024906]
[1726583427256,1.20272073,60219.0,60218.0,0.0024906]
[1726583427454,0.3608,60224.0,60218.0,0.0024906]
[1726583427651,0.3608,60224.0,60223.0,0.53]
[1726583427858,0.3608,60224.0,60223.0,0.613012]
[1726583428560,0.3608,60234.0,60233.0,0.082998]
[1726583428759,0.32668472,60234.0,60233.0,0.612998]
[1726583428947,0.30176365,60234.0,60233.0,0.612998]
[1726583429258,0.3608,60243.0,60233.0,0.53]
[1726583429448,0.84192073,60239.0,60233.0,0.53]
[1726583429653,0.84192073,60239.0,60238.0,0.082991]
[1726583429848,0.85878304,60243.0,60233.0,0.53]
[1726583429849,0.00084,60243.0,60242.0,0.082986]
[1726583430053,0.3608,60253.0,60240.0,0.53]
[1726583430260,0.3608,60253.0,60232.0,0.3608]
[1726583430261,0.3608,60241.0,60234.0,0.53]
[1726583430560,0.3608,60241.0,60229.0,0.00249012]
[1726583430561,0.84192073,60238.0,60229.0,0.00249012]
[1726583430860,0.84192073,60238.0,60234.0,0.082996]
[1726583431157,0.3608,60235.0,60233.0,0.082997]
[1726583431457,0.3608,60235.0,60234.0,0.082997]
[1726583431656,0.3608,60236.0,60235.0,0.082995]
[1726583431856,1.20272073,60236.0,60229.0,0.00249012]
[1726583432063,0.082995,60235.0,60231.0,0.083]
[1726583432252,0.84192073,60230.0,60229.0,0.00249012]
[1726583432451,0.84192073,60230.0,60198.0,0.3608]
[1726583432650,0.3608,60210.0,60203.0,0.53]
[1726583432857,0.84192073,60207.0,60203.0,0.53]
[1726583433256,0.84192073,60207.0,60206.0,0.083035]
[1726583433452,0.84192073,60207.0,60203.0,0.53132]
[1726583433653,0.84192073,60207.0,60201.0,0.01485748]
[1726583433853,0.84192073,60207.0,60204.0,0.53]
[1726583434054,0.3608,60208.0,60207.0,0.083034]
[1726583434458,1.20272073,60208.0,60204.0,0.53]
[1726583434654,1.20272073,60208.0,60206.0,0.083035]
[1726583434964,0.53,60230.0,60222.0,0.083013]
[1726583434965,0.13162699,60224.0,60222.0,0.083013]
[1726583435169,0.3608,60230.0,60224.0,0.08301]
[1726583435170,0.84192073,60226.0,60224.0,0.08301]
[1726583435351,0.79486811,60226.0,60224.0,0.08301]
[1726583435670,0.3608,60235.0,60223.0,0.53]
[1726583435872,0.79486811,60229.0,60223.0,0.53]
[1726583436052,0.79486811,60227.0,60223.0,0.53]
[1726583436360,0.79486811,60227.0,60223.0,0.083011]
[1726583436668,0.12367885,60226.0,60223.0,0.083011]
[1726583436964,0.79486811,60226.0,60219.0,0.3608]
[1726583437158,0.79486811,60226.0,60225.0,0.083009]
[1726583437558,0.83553635,60226.0,60225.0,0.083009]
[1726583438361,0.83553635,60226.0,60218.0,0.53249046]
[1726583438362,1.41568739,60226.0,60222.0,0.083013]
[1726583438661,1.15566811,60223.0,60222.0,0.083013]
[1726583438850,1.39537686,60223.0,60222.0,0.083013]
[1726583439057,1.69347939,60223.0,60222.0,0.083013]
[1726583439362,1.69347939,60223.0,60221.0,0.083015]
[1726583439555,0.79486811,60219.0,60218.0,0.00249046]
[1726583439752,0.8355406,60219.0,60218.0,0.09769219]
[1726583440062,0.50886091,60227.0,60218.0,0.09769219]
[1726583440063,0.083001,60231.0,60218.0,0.00249046]
[1726583440259,0.79486811,60220.0,60219.0,0.083017]
[1726583440458,0.79486811,60226.0,60225.0,0.083009]
[1726583440769,0.04067081,60226.0,60225.0,0.083009]
[1726583440959,0.83553892,60226.0,60225.0,0.083009]
[1726583441158,1.66781385,60226.0,60218.0,0.00249046]
[1726583441365,1.66781385,60226.0,60148.0,0.3213]
[1726583441366,0.35987674,60198.0,60178.0,0.53]
[1726583441568,0.443847,60198.0,60174.0,0.3608]
[1726583441865,0.3608,60187.0,60174.0,0.37272191]
[1726583442176,0.04069288,60186.0,60185.0,0.083064]
[1726583442363,0.3608,60187.0,60185.0,0.083064]
[1726583443566,0.3608,60197.0,60186.0,1.02844]
[1726583443567,0.3608,60190.0,60186.0,1.02844]
[1726583443868,0.13150456,60197.0,60196.0,0.083049]
[1726583444064,0.13150456,60197.0,60189.0,0.00249137]
[1726583444065,0.3441019,60199.0,60197.0,0.083048]
[1726583444380,0.04068619,60198.0,60197.0,0.083048]
[1726583444561,0.04068619,60198.0,60197.0,0.09532802]
[1726583444757,0.17219075,60198.0,60197.0,0.09532802]
[1726583445168,0.04068619,60198.0,60197.0,0.09532802]
[1726583445566,0.40056293,60198.0,60197.0,0.09532802]
[1726583445868,0.45156264,60198.0,60197.0,0.01228002]
[1726583446168,0.083048,60197.0,60189.0,0.00249137]
[1726583446371,0.72067674,60190.0,60174.0,0.3608]
[1726583446668,0.35987674,60183.0,60180.0,0.083071]
[1726583446869,0.35987674,60181.0,60164.0,0.53]
[1726583447062,0.3608,60176.0,60164.0,0.53]
[1726583447369,0.3608,60176.0,60175.0,0.083078]
[1726583449162,0.72067674,60176.0,60175.0,0.083078]
[1726583449363,0.72067674,60176.0,60173.0,0.01458178]
[1726583449364,1.25852043,60176.0,60173.0,0.01458178]
[1726583449565,0.80375574,60174.0,60173.0,0.01458178]
[1726583449761,0.84445639,60174.0,60173.0,0.01458178]
[1726583450170,0.8933588,60174.0,60173.0,0.01458178]
[1726583450471,0.76137739,60174.0,60173.0,0.01458178]
[1726583450662,0.89321972,60174.0,60173.0,0.01458178]
[1726583450866,0.76137739,60174.0,60173.0,0.01458178]
[1726583451575,0.76137739,60174.0,60173.0,0.09766278]
[1726583451766,0.72067674,60174.0,60173.0,0.09766278]
[1726583451963,0.3608,60174.0,60173.0,0.09766278]
[1726583452170,0.40150725,60174.0,60173.0,0.09766278]
[1726583452368,0.3608,60174.0,60173.0,0.09766278]
[1726583452778,0.3608,60174.0,60173.0,0.01458178]
[1726583452779,0.443879,60174.0,60173.0,0.01458178]
[1726583453268,0.3608,60174.0,60173.0,0.01458178]
[1726583453670,0.40150829,60174.0,60173.0,0.01458178]
[1726583453871,0.3608,60174.0,60173.0,0.01458178]
[1726583454378,0.19327278,60176.0,60175.0,0.166156]
[1726583454675,0.12052778,60176.0,60175.0,0.083078]
[1726583454975,0.3608,60176.0,60175.0,0.083078]
[1726583455474,0.3608,60176.0,60175.0,1.181638]
[1726583455869,0.351799,60176.0,60175.0,1.181638]
[1726583456178,0.351799,60176.0,60175.0,0.083078]
[1726583457881,0.71167574,60176.0,60173.0,0.01458178]
[1726583458076,0.3608,60174.0,60173.0,0.01458178]
[1726583458377,0.72067674,60174.0,60156.0,0.53]
[1726583458577,0.3608,60163.0,60156.0,0.53]
[1726583458776,0.3608,60157.0,60156.0,0.083104]
[1726583458968,0.3608,60157.0,60156.0,0.613104]
[1726583459572,0.3608,60157.0,60156.0,0.083104]
[1726583459774,0.3608,60157.0,60156.0,0.613104]
[1726583460474,0.30718001,60157.0,60156.0,0.613104]
[1726583460681,0.28015143,60157.0,60156.0,1.711784]
[1726583460978,0.3608,60163.0,60162.0,0.083096]
[1726583460979,0.30295144,60163.0,60162.0,0.083096]
[1726583461372,0.66282818,60163.0,60162.0,0.083096]
[1726583461775,0.66282818,60163.0,60152.0,0.00249313]
[1726583461776,1.15997122,60163.0,60152.0,0.00249313]
[1726583462087,0.72067674,60153.0,60152.0,0.00249313]
[1726583462274,0.76139788,60153.0,60152.0,0.00249313]
[1726583462469,0.76139788,60153.0,60152.0,0.01439475]
[1726583462668,0.812441,60153.0,60152.0,0.00249313]
[1726583462873,1.45803553,60153.0,60146.0,0.083118]
[1726583463078,0.35987674,60147.0,60146.0,0.09511167]
[1726583463386,0.17241597,60147.0,60146.0,0.09511167]
[1726583463580,0.89774092,60147.0,60146.0,0.01199367]
[1726583463773,0.89774092,60147.0,60143.0,0.083122]
[1726583464078,0.35987674,60144.0,60143.0,0.01237279]
[1726583464297,0.04072576,60144.0,60142.0,0.08561686]
[1726583464482,0.00092,60147.0,60143.0,0.8908]
[1726583464688,0.3608,60154.0,60143.0,0.8908]
[1726583464878,0.35987674,60144.0,60142.0,0.01456505]
[1726583465086,0.35987674,60143.0,60142.0,0.01456505]
[1726583465388,0.72067674,60143.0,60142.0,0.01456505]
[1726583465590,0.76140385,60143.0,60142.0,0.01456505]
[1726583465970,0.40152711,60143.0,60142.0,0.01456505]
[1726583466375,0.76140385,60143.0,60142.0,0.01456505]
[1726583466584,1.25854689,60143.0,60142.0,0.01456505]
[1726583466773,0.76140385,60143.0,60142.0,0.01456505]
[1726583467085,1.25854689,60143.0,60142.0,0.01456505]
[1726583467298,1.30959682,60143.0,60142.0,0.01456505]
[1726583467599,1.30959707,60143.0,60142.0,0.01456505]
[1726583467885,0.81245403,60143.0,60142.0,0.01456505]
[1726583468272,0.45257729,60143.0,60142.0,0.01456505]
[1726583468475,0.452577,60143.0,60142.0,0.01456505]
[1726583468797,0.53320931,60143.0,60142.0,0.01456505]
[1726583469284,0.3608,60143.0,60142.0,0.01456505]
[1726583469880,0.76140485,60143.0,60142.0,0.01456505]
[1726583470184,0.13168125,60146.0,60142.0,0.01456505]
[1726583470185,0.13172162,60161.0,60160.0,0.083099]
[1726583470376,0.13172162,60166.0,60163.0,0.083095]
[1726583470577,0.31681317,60165.0,60163.0,0.083095]
[1726583470775,0.17255519,60164.0,60163.0,0.443895]
[1726583470973,0.04071143,60164.0,60163.0,0.443895]
[1726583471179,0.13184515,60169.0,60160.0,0.53124]
[1726583471488,0.3608,60163.0,60157.0,0.01457583]
[1726583471684,0.27610174,60165.0,60163.0,0.083093]
[1726583471885,0.16495488,60169.0,60168.0,0.083088]
[1726583472106,0.13841549,60171.0,60170.0,0.083085]
[1726583472382,0.27610174,60170.0,60165.0,0.083091]
[1726583472584,0.3608,60166.0,60157.0,0.00249308]
[1726583472783,0.18096334,60170.0,60168.0,0.083088]
[1726583473084,0.36172,60171.0,60157.0,0.01470453]